[Event "FIDE WCCC U8 2018"]
[Site "Santiago de Compostela"]
[Date "2018.11.11"]
[Round "7"]
[White "Villa Tornero, Alex"]
[Black "Finek, Vaclav"]
[Result "0-1"]
[ECO "B24"]
[WhiteElo "1441"]
[BlackElo "1942"]
[Annotator "NA RC"]
[PlyCount "60"]
[EventDate "2018.11.04"]
[EventType "swiss"]
[EventCountry "ESP"]
[SourceTitle "playchess.com"]
[Source "ChessBase"]
[SourceQuality "1"]
[TimeControl "40/5400+30:1800+30"]

1. e4 {[%emt 0:00:00]} c5 {[%emt 0:00:00]} 2. Nc3 {[%emt 0:00:00]} Nc6 {[%emt 0:00:00]} 3. Bb5 {[%emt 0:00:35]} Nd4 {[%emt 0:00:00]} 4. Bc4 {[%emt 0:01:00]} g6 {[%emt 0:00:55]} 5. Nf3 {[%emt 0:00:48]} Bg7 {[%emt 0:01:12]} 6. Nxd4 {[%emt 0:02:38]} cxd4 {[%emt 0:02:26] LiveBook: 341 Games} 7. Qf3 {[%emt 0:01:48]} e6 {[%emt 0:00:23]} 8. Nb5 {[%emt 0:01:14]} Be5 {[%emt 0:13:27] B23: Closed Sicilian: Lines without g3} (8... d5 $11 {bleibt in der Remisbreite.} 9. Qg3 (9. exd5 a6 $14) 9... dxc4 10. Nc7+ Kf8) (8... d6 9. Qa3 Ke7 10. c3 dxc3 11. dxc3 a6 12. Nd4 e5 13. Nc2 Be6 14. Qb3 Qc7 15. Bd5 Bxd5 16. Qxd5 Qc6 17. Qd3 h6 18. Nb4 Qe8 19. Nd5+ {1-0 (19) Hou,Y (2673)-Cramling,P (2518) Beijing 2014}) 9. O-O {[%emt 0:13:18]} a6 {[%emt 0:09:21]} 10. Na3 {[%emt 0:03:22]} Ne7 {[%emt 0:00:20]} 11. d3 $146 {[%emt 0:00:49]} ({Predecessor:} 11. Bb3 b5 12. c3 Nc6 13. Nc2 Bb7 14. Ne1 Qb6 15. Rb1 O-O 16. Qg4 {0-1 (45) Hoffer,T (1974)-Blancho,G (1870) France 2005}) 11... O-O {[%emt 0:01:52]} 12. Bh6 {[%emt 0:02:45]} Bg7 {[%emt 0:00:37]} 13. Bxg7 {[%emt 0:00:18]} Kxg7 {[%emt 0:00:02]} 14. c3 {[%emt 0:01:57]} dxc3 {[%emt 0:00:49]} 15. bxc3 {[%emt 0:00:18]} Qa5 {[%emt 0:01:19]} 16. Nb1 {[%emt 0:01:15]} d5 {[%emt 0:06:54]} 17. exd5 {[%emt 0:01:15]} exd5 {[%emt 0:01:34]} 18. Bb3 {[%emt 0:00:36]} Be6 {[%emt 0:00:57]} 19. d4 {[%emt 0:01:42]} Rac8 {[%emt 0:03:27]} 20. Rc1 {[%emt 0:02:28]} Nf5 {[%emt 0:06:17]} 21. Qe2 {[%emt 0:02:13]} Kg8 {[%emt 0:04:40]} 22. Qb2 {[%emt 0:02:09]} Rfe8 {[%emt 0:05:56]} 23. a4 {[%emt 0:01:26]} Nd6 {[%emt 0:03:10]} 24. Nd2 {[%emt 0:01:17]} Qd8 {[%emt 0:04:48]} 25. Re1 {[%emt 0:05:18]} Qa5 {[%emt 0:07:51]} 26. Rac1 {[%emt 0:01:24]} Bd7 {[%emt 0:03:49]} 27. Kf1 {[%emt 0:02:06]} Bxa4 {[%emt 0:03:59]} 28. Ra1 $2 {[%emt 0:05:25]} (28. Rxe8+ Rxe8 29. Kg1 Bxb3 30. Qxb3) 28... Qb5+ {[%emt 0:01:04]} 29. c4 $2 {[%emt 0:02:02]} (29. Kg1 Rxe1+ 30. Rxe1) 29... dxc4 {[%emt 0:00:29]} 30. Rxa4 {[%emt 0:01:16]} c3+ {[%emt 0:00:14]} 0-1

[Event "FIDE WCCC U8 2018"]
[Site "Santiago de Compostela"]
[Date "2018.11.11"]
[Round "7"]
[White "Durovka, Marek"]
[Black "Hajdu, Marton Abris"]
[Result "1/2-1/2"]
[ECO "D02"]
[WhiteElo "1370"]
[BlackElo "1755"]
[Annotator "NA RC"]
[PlyCount "123"]
[EventDate "2018.11.04"]
[EventType "swiss"]
[EventCountry "ESP"]
[SourceTitle "playchess.com"]
[Source "ChessBase"]
[SourceQuality "1"]
[TimeControl "40/5400+30:1800+30"]

1. d4 {[%emt 0:00:00]} Nf6 {[%emt 0:00:00]} 2. Bf4 {[%emt 0:00:13]} d5 {[%emt 0:00:00]} 3. Nf3 {[%emt 0:02:06]} c5 {[%emt 0:00:14]} 4. e3 {[%emt 0:00:47]} Nc6 {[%emt 0:02:19]} 5. Nbd2 {[%emt 0:07:57]} Bf5 {[%emt 0:06:48]} 6. c3 {[%emt 0:05:52]} Qb6 {[%emt 0:02:07]} 7. Qb3 {[%emt 0:08:33]} c4 {[%emt 0:00:44]} 8. Qxb6 {[%emt 0:08:30]} axb6 {[%emt 0:00:07]} 9. Be2 {[%emt 0:06:29]} b5 10. O-O {[%emt 0:02:42]} b4 {[%emt 0:03:12]} 11. Ne5 {[%emt 0:11:01]} bxc3 {[%emt 0:02:06]} 12. bxc3 {[%emt 0:00:11]} Nxe5 {[%emt 0:00:18]} 13. Bxe5 {[%emt 0:00:09]} e6 {[%emt 0:01:43]} 14. h4 {[%emt 0:07:08]} h6 {[%emt 0:00:49]} 15. Bxf6 {[%emt 0:02:53]} gxf6 {[%emt 0:00:52]} 16. g4 {[%emt 0:03:00]} Bh7 {[%emt 0:00:58]} 17. a4 {[%emt 0:04:02]} f5 {[%emt 0:00:51]} 18. g5 {[%emt 0:08:01]} hxg5 {[%emt 0:00:34]} 19. hxg5 {[%emt 0:00:09]} Rg8 {[%emt 0:00:29]} 20. f4 {[%emt 0:00:31]} f6 {[%emt 0:00:56]} 21. Nf3 {[%emt 0:06:08]} Be7 {[%emt 0:05:56]} 22. Kf2 {[%emt 0:03:53]} Kd7 {[%emt 0:06:34]} 23. gxf6 {[%emt 0:00:53]} Bxf6 {[%emt 0:00:20]} 24. Rh1 {[%emt 0:01:20]} Bg6 {[%emt 0:24:36]} 25. Rh6 {[%emt 0:00:29]} Ke7 {[%emt 0:01:04]} 26. Rg1 {[%emt 0:01:07]} Bf7 {[%emt 0:02:03]} 27. Bd1 {[%emt 0:03:37]} Rxg1 {[%emt 0:00:28]} 28. Kxg1 {[%emt 0:01:11]} Rh8 {[%emt 0:00:42]} 29. Rxh8 {[%emt 0:01:14]} Bxh8 {[%emt 0:00:07]} 30. Kf2 {[%emt 0:00:39]} b6 {[%emt 0:00:59]} 31. Ne5 {[%emt 0:01:14]} Bf6 {[%emt 0:02:16]} 32. Nxf7 {[%emt 0:00:38]} Kxf7 {[%emt 0:00:14]} 33. Ke2 {[%emt 0:00:08]} Be7 {[%emt 0:00:32]} 34. Kd2 {[%emt 0:01:03]} Kg7 {[%emt 0:00:21]} 35. Bh5 {[%emt 0:01:17]} Bh4 {[%emt 0:01:00]} 36. Ke2 {[%emt 0:00:47]} Bg3 {[%emt 0:00:36]} 37. Be8 {[%emt 0:00:23]} Kf6 {[%emt 0:00:22]} 38. Bh5 {[%emt 0:01:06]} Ke7 {[%emt 0:00:22]} 39. Bg6 {[%emt 0:00:32]} Kd6 {[%emt 0:00:26]} 40. Be8 {[%emt 0:00:00]} Kc7 {[%emt 0:00:00]} 41. Kd2 {[%emt 0:01:18]} Bf2 {[%emt 0:00:24]} 42. Ke2 {[%emt 0:00:24]} Bh4 {[%emt 0:00:56]} 43. Kd2 {[%emt 0:00:23]} Be7 {[%emt 0:00:10]} 44. Kc2 {[%emt 0:01:04]} Ba3 {[%emt 0:00:12]} 45. Kb1 {[%emt 0:01:37]} Kd8 {[%emt 0:01:40]} 46. Bh5 {[%emt 0:00:49]} Ke7 {[%emt 0:00:26]} 47. Kc2 {[%emt 0:00:24]} Kd6 {[%emt 0:00:56]} 48. Be8 {[%emt 0:00:08]} Ke7 {[%emt 0:00:18]} 49. Bh5 {[%emt 0:00:09]} Bd6 {[%emt 0:00:17]} 50. Kd2 {[%emt 0:00:41]} Kd7 {[%emt 0:00:21]} 51. Kc2 {[%emt 0:00:35]} Be7 {[%emt 0:00:31]} 52. Bf7 {[%emt 0:00:28]} Bh4 {[%emt 0:00:44]} 53. Kd2 {[%emt 0:00:13]} Ke7 {[%emt 0:00:15]} 54. Bh5 {[%emt 0:00:23]} Kd6 {[%emt 0:00:37]} 55. Be8 {[%emt 0:00:36]} Bg3 {[%emt 0:00:36]} 56. Ke2 {[%emt 0:02:00]} Kc7 {[%emt 0:02:24]} 57. Bf7 {[%emt 0:01:27]} Kd7 {[%emt 0:00:15]} 58. Kd2 {[%emt 0:00:44]} Ke7 {[%emt 0:00:41]} 59. Bh5 {[%emt 0:00:18]} Kd6 {[%emt 0:00:12]} 60. Be8 {[%emt 0:00:10]} Bf2 {[%emt 0:01:52]} 61. Ke2 {[%emt 0:00:17]} Ke7 {[%emt 0:01:38]} 62. Bh5 {[%emt 0:01:24]} 1/2-1/2

[Event "FIDE WCCC U8 2018"]
[Site "Santiago de Compostela"]
[Date "2018.11.11"]
[Round "7"]
[White "Lam, Chun Yung Samuel"]
[Black "Yonal, Timur"]
[Result "0-1"]
[ECO "B20"]
[WhiteElo "1309"]
[BlackElo "1524"]
[Annotator "NA RC"]
[PlyCount "96"]
[EventDate "2018.11.04"]
[EventType "swiss"]
[EventCountry "ESP"]
[SourceTitle "playchess.com"]
[Source "ChessBase"]
[SourceQuality "1"]
[TimeControl "40/5400+30:1800+30"]

1. e4 {[%emt 0:00:00]} c5 {[%emt 0:00:00]} 2. Be2 {[%emt 0:00:09]} e6 {[%emt 0:00:14]} 3. f4 {[%emt 0:00:12]} d6 {[%emt 0:00:10]} 4. Nf3 {[%emt 0:00:18]} Nc6 {[%emt 0:00:29]} 5. O-O {[%emt 0:00:17]} Qc7 {[%emt 0:02:04]} 6. d3 {[%emt 0:00:22]} a6 {[%emt 0:00:31]} 7. c3 {[%emt 0:00:48]} d5 {[%emt 0:06:43]} 8. Be3 {[%emt 0:01:47]} Nf6 {[%emt 0:00:45]} 9. e5 {[%emt 0:04:11]} Ng4 {[%emt 0:00:18]} 10. Qd2 {[%emt 0:00:57]} Nxe3 {[%emt 0:00:15]} 11. Qxe3 {[%emt 0:00:14]} d4 {[%emt 0:08:26]} 12. Qf2 {[%emt 0:04:56]} b5 {[%emt 0:01:41]} 13. Kh1 {[%emt 0:00:59]} Bb7 {[%emt 0:01:10]} 14. cxd4 {[%emt 0:01:33]} cxd4 {[%emt 0:09:28]} 15. Nxd4 {[%emt 0:00:52]} Nxd4 {[%emt 0:00:28]} 16. Qxd4 {[%emt 0:00:14]} Bc5 {[%emt 0:16:31]} 17. Qc3 {[%emt 0:00:51]} Qb6 {[%emt 0:00:26]} 18. Nd2 {[%emt 0:01:53]} Bd4 {[%emt 0:10:05]} 19. Qa3 {[%emt 0:08:11]} a5 {[%emt 0:07:34]} 20. Rac1 {[%emt 0:04:38]} Be3 {[%emt 0:09:51]} 21. Qc3 {[%emt 0:06:38]} O-O {[%emt 0:01:18]} 22. Qc2 {[%emt 0:09:15]} Rac8 {[%emt 0:04:34]} 23. Qd1 {[%emt 0:00:16]} Rxc1 {[%emt 0:00:11]} 24. Qxc1 {[%emt 0:00:07]} Rc8 {[%emt 0:00:04]} 25. Qd1 {[%emt 0:00:12]} Bd5 {[%emt 0:01:10]} 26. b3 {[%emt 0:03:32]} Qc6 {[%emt 0:01:51]} 27. Bf3 {[%emt 0:00:35]} Bxf3 {[%emt 0:00:22]} 28. Nxf3 {[%emt 0:01:28]} Qc3 {[%emt 0:01:51]} 29. Ng5 {[%emt 0:06:56]} h6 {[%emt 0:02:35]} 30. Ne4 {[%emt 0:00:20]} Qd4 {[%emt 0:00:23]} 31. Qe2 {[%emt 0:03:28]} b4 {[%emt 0:01:32]} 32. g3 {[%emt 0:02:40]} Qa7 {[%emt 0:03:50]} 33. Kg2 {[%emt 0:01:38]} Rd8 {[%emt 0:00:57]} 34. Nd6 {[%emt 0:00:56]} Bc5 35. Ne4 {[%emt 0:02:39]} Bb6 {[%emt 0:01:12]} 36. Rc1 {[%emt 0:01:02]} Qd7 {[%emt 0:01:21]} 37. Rd1 {[%emt 0:02:51]} Qd5 {[%emt 0:00:13]} 38. Qf3 {[%emt 0:00:42]} Bd4 {[%emt 0:00:41]} 39. Kf1 {[%emt 0:03:37]} Rc8 {[%emt 0:01:15]} 40. Qg4 {[%emt 0:00:00]} Kh8 {[%emt 0:00:00]} 41. Qh5 {[%emt 0:01:34]} Rc7 {[%emt 0:02:30]} 42. g4 {[%emt 0:05:00]} Be3 {[%emt 0:05:33]} 43. Qh4 {[%emt 0:18:58]} Bxf4 {[%emt 0:04:38]} 44. g5 {[%emt 0:00:27]} Bxg5 {[%emt 0:05:38]} 45. Nxg5 {[%emt 0:01:40]} Qh1+ {[%emt 0:00:09]} 46. Ke2 {[%emt 0:02:21]} Qg2+ {[%emt 0:00:11]} 47. Qf2 {[%emt 0:00:51]} Rc2+ {[%emt 0:00:28]} 48. Rd2 {[%emt 0:00:10]} Rxd2+ {[%emt 0:00:04]} 0-1

[Event "FIDE WCCC U8 2018"]
[Site "Santiago de Compostela"]
[Date "2018.11.12"]
[Round "8"]
[White "Begmuratov, Khumoyun"]
[Black "Chennareddy, Yuvraj"]
[Result "0-1"]
[ECO "A06"]
[WhiteElo "1880"]
[BlackElo "1497"]
[Annotator "NA RC"]
[PlyCount "130"]
[EventDate "2018.11.04"]
[EventType "swiss"]
[EventCountry "ESP"]
[SourceTitle "playchess.com"]
[Source "ChessBase"]
[SourceQuality "1"]
[TimeControl "40/5400+30:1800+30"]

{[%evp 8,117,12,11,45,0,0,-17,-4,-26,-24,-27,-54,-47,-34,-52,-51,-65,-41,-38,-34,-47,-7,-20,-51,-48,-38,-87,-66,32767,-48,-55,-53,-57,-53,32767,-106,32767,-126,-167,-179,-272,-271,-338,-272,-266,-288,-262,32767,-527,-452,32767,-547,-541,-614,-472,-541,-512,-615,32767,32767,32767,32767,-654,-894,-958,32767,32767,32767,32767,32767,32767,-1306,-1258,-2443,32767,32767,32767,32767,32767,32767,32767,32767,32767,32767,32767,32767,32767,32767,32767,32767,32767,32767,32767,32767,32767,32767,32767,32767,32767,32767,32767,32767,32767,32767,32767,32767,32767,32767,-29993,-29994,-29994]} 1. Nf3 {[%emt 0:00:00]} d5 {[%emt 0:00:11]} 2. g3 {[%emt 0:00:05]} Bg4 {[%emt 0:01:47]} 3. Bg2 {[%emt 0:01:17]} Nf6 {[%emt 0:00:57]} 4. O-O {[%emt 0:00:28]} e6 {[%emt 0:00:37]} 5. d3 {[%emt 0:01:33]} c5 {[%emt 0:02:42]} 6. Nbd2 {[%emt 0:00:45]} Nc6 {[%emt 0:01:44]} 7. c3 {[%emt 0:01:23] LiveBook: 8 Games} Bd6 {[%emt 0:00:34] A08: King's Indian Attack} (7... Be7 8. a3 O-O 9. b4 Qc7 10. Bb2 a6 11. Rc1 Rad8 12. h3 Bh5 13. Qe1 b5 14. Nh2 c4 15. d4 {1-0 (45) Cordova,E (2621)-Salinas Herrera,P (2463) Montevideo 2018}) 8. Qe1 {[%emt 0:02:57]} O-O {[%emt 0:01:47]} 9. e4 {[%emt 0:00:12]} Qc7 {[%emt 0:00:15]} 10. h3 {[%emt 0:15:09]} Bh5 {[%emt 0:04:23]} 11. b3 {[%emt 0:09:50]} Rad8 $146 {[%emt 0:13:54]} ({Predecessor:} 11... Nd7 12. g4 Bg6 13. Nh4 d4 14. Ndf3 Rad8 15. Bb2 {1-0 (70) Berezina,I (2264)-Sanchez Castillo,S (2180) Bled 2002}) 12. a3 {[%emt 0:22:31]} b5 {[%emt 0:07:25]} 13. Bb2 {[%emt 0:01:47]} dxe4 {[%emt 0:11:20]} 14. dxe4 {[%emt 0:01:01]} Be5 {[%emt 0:00:30]} 15. Qe3 {[%emt 0:06:53]} Bxf3 {[%emt 0:16:42]} 16. Nxf3 {[%emt 0:00:20]} Na5 {[%emt 0:02:24]} 17. Nxe5 {[%emt 0:03:47]} (17. a4 $11 {remains equal.}) 17... Qxe5 {[%emt 0:00:14]} 18. Rab1 {[%emt 0:00:05]} c4 {[%emt 0:11:01]} ({Much weaker is} 18... Nxb3 $6 {[#]} 19. c4 $1 $11 {[%mdl 512]}) 19. b4 {[%emt 0:04:05]} Nb3 {[%emt 0:07:57]} 20. Rbd1 {[%emt 0:00:28]} Qc7 {[%emt 0:00:49]} 21. f4 {[%emt 0:09:04]} Nd7 {[%emt 0:05:11]} 22. Bc1 {[%emt 0:05:32] [#]} Nb6 $1 {[%emt 0:01:04]} 23. Bf3 {[%emt 0:03:11] [#]} Na4 $1 {[%emt 0:01:20]} 24. Be2 {[%emt 0:00:20]} (24. Kg2 {might work better.}) 24... Qb6 {[%emt 0:00:23]} 25. Kf2 {[%emt 0:02:10]} Nxc3 {[%emt 0:01:18]} 26. Rxd8 {[%emt 0:00:16]} Rxd8 {[%emt 0:00:05]} 27. Qxb6 {[%emt 0:00:27]} axb6 {[%emt 0:00:13]} 28. Ke3 $2 {[%emt 0:01:16]} (28. Bf3 {is a better defense.}) 28... Nd4 {[%emt 0:01:26]} 29. Bd1 {[%emt 0:01:26]} Nxd1+ {[%emt 0:00:30]} 30. Rxd1 {[%emt 0:00:06] [#]} Nf5+ $1 {[%emt 0:00:15]} 31. Ke2 {[%emt 0:00:09]} Nxg3+ {[%emt 0:00:07]} 32. Ke1 {[%emt 0:00:03]} Rxd1+ {[%emt 0:00:10]} 33. Kxd1 {[%emt 0:00:20]} Nxe4 {[%emt 0:00:06]} 34. Kc2 {[%emt 0:00:05]} Nf6 {[%emt 0:00:28]} 35. h4 {[%emt 0:02:15]} Nd5 {[%emt 0:00:13]} 36. Bd2 {[%emt 0:00:06]} f6 {[%emt 0:00:20]} 37. h5 {[%emt 0:00:09]} g6 {[%emt 0:00:24]} 38. hxg6 {[%emt 0:00:39]} hxg6 {[%emt 0:00:07]} 39. Kd1 {[%emt 0:00:06]} Kf7 {[%emt 0:00:18]} 40. Ke2 {[%emt 0:00:00]} e5 {[%emt 0:00:00]} 41. fxe5 {[%emt 0:00:11]} fxe5 {[%emt 0:00:29]} 42. Kf3 {[%emt 0:00:03]} Ke6 {[%emt 0:00:21]} 43. Ke4 {[%emt 0:00:13]} Nf6+ {[%emt 0:00:07]} 44. Kf3 {[%emt 0:00:09]} Kf5 {[%emt 0:00:06]} 45. Bc3 {[%emt 0:00:20]} g5 {[%emt 0:00:36]} 46. Bd2 {[%emt 0:00:22]} Nd5 {[%emt 0:00:08]} 47. Bc1 {[%emt 0:00:08]} e4+ {[%emt 0:00:08]} 48. Ke2 {[%emt 0:00:03]} c3 {[%emt 0:00:08]} 49. Kf2 {[%emt 0:00:04]} e3+ {[%emt 0:00:35]} 50. Ke2 {[%emt 0:00:09]} Ke4 {[%emt 0:00:08]} 51. Ke1 {[%emt 0:00:07]} Nf4 {[%emt 0:00:11]} 52. Kd1 {[%emt 0:00:07]} Kd3 {[%emt 0:00:14]} 53. Ke1 {[%emt 0:00:04]} g4 {[%emt 0:00:06]} 54. Kf1 {[%emt 0:00:05]} e2+ {[%emt 0:00:10]} 55. Kf2 {[%emt 0:00:11]} Ng2 {[%emt 0:00:05]} 56. Kxg2 {[%emt 0:00:04]} e1=Q {[%emt 0:00:08]} 57. Bf4 {[%emt 0:00:03]} Qe4+ {[%emt 0:00:12]} 58. Kg3 {[%emt 0:00:05]} Qf3+ {[%emt 0:00:07]} 59. Kh4 {[%emt 0:00:04]} Qxf4 {[%emt 0:00:07]} 60. Kh5 {[%emt 0:00:05]} c2 {[%emt 0:00:16]} 61. Kg6 {[%emt 0:00:09]} c1=Q {[%emt 0:01:23]} 62. Kg7 {[%emt 0:00:07]} g3 {[%emt 0:00:21]} 63. Kh7 {[%emt 0:00:09]} g2 {[%emt 0:00:06]} 64. Kg7 {[%emt 0:00:04]} g1=R+ {[%emt 0:00:09]} 65. Kh7 {[%emt 0:00:04]} Qh6# {[%emt 0:00:12]} 0-1

[Event "FIDE WCCC U8 2018"]
[Site "Santiago de Compostela"]
[Date "2018.11.12"]
[Round "8"]
[White "Zverev, Lev"]
[Black "Sowinski, Pawel"]
[Result "1-0"]
[ECO "B06"]
[WhiteElo "1723"]
[BlackElo "1318"]
[Annotator "NA RC"]
[PlyCount "135"]
[EventDate "2018.11.04"]
[EventType "swiss"]
[EventCountry "ESP"]
[SourceTitle "playchess.com"]
[Source "ChessBase"]
[SourceQuality "1"]
[TimeControl "40/5400+30:1800+30"]

1. e4 {[%emt 0:00:00]} g6 {[%emt 0:00:10]} 2. d4 {[%emt 0:00:00]} Bg7 {[%emt 0:00:15]} 3. Nc3 {[%emt 0:00:03]} d6 {[%emt 0:00:14]} 4. Be3 {[%emt 0:00:27]} c6 {[%emt 0:00:25]} 5. Bc4 {[%emt 0:00:26]} Nd7 {[%emt 0:00:28]} 6. Qd2 {[%emt 0:00:23]} Ngf6 {[%emt 0:00:17]} 7. f3 {[%emt 0:00:09]} Qc7 {[%emt 0:00:25]} 8. O-O-O {[%emt 0:00:27]} Rb8 {[%emt 0:01:00]} 9. Nh3 {[%emt 0:02:03]} b5 {[%emt 0:01:11]} 10. Bb3 {[%emt 0:02:53]} a5 {[%emt 0:02:13]} 11. a4 {[%emt 0:00:18]} bxa4 {[%emt 0:00:58]} 12. Nxa4 {[%emt 0:00:11]} Nb6 {[%emt 0:02:11]} 13. Qxa5 {[%emt 0:00:14]} Bxh3 {[%emt 0:00:18]} 14. gxh3 {[%emt 0:00:17]} Nfd7 {[%emt 0:00:20]} 15. Nxb6 {[%emt 0:01:03]} Nxb6 {[%emt 0:00:58]} 16. Qd2 {[%emt 0:01:22]} c5 {[%emt 0:01:54]} 17. c3 {[%emt 0:00:40]} c4 {[%emt 0:00:13]} 18. Bc2 {[%emt 0:00:10]} Qa7 {[%emt 0:01:45]} 19. Qf2 {[%emt 0:00:36]} Na4 {[%emt 0:00:57]} 20. Bxa4+ {[%emt 0:07:11]} Qxa4 {[%emt 0:00:09]} 21. Qc2 {[%emt 0:00:07]} Rb3 {[%emt 0:04:02]} 22. Kd2 {[%emt 0:00:27]} O-O {[%emt 0:00:20]} 23. Ra1 {[%emt 0:00:35]} Qb5 {[%emt 0:00:10]} 24. Rhb1 {[%emt 0:00:07]} Rb8 {[%emt 0:00:13]} 25. Kd1 {[%emt 0:00:56]} e5 {[%emt 0:02:46]} 26. d5 {[%emt 0:00:27]} f5 {[%emt 0:00:25]} 27. Kc1 {[%emt 0:01:31]} f4 {[%emt 0:02:00]} 28. Bf2 {[%emt 0:00:16]} Bf6 {[%emt 0:01:02]} 29. Ra3 {[%emt 0:00:23]} Qd7 {[%emt 0:02:48]} 30. Rxb3 {[%emt 0:04:01]} cxb3 {[%emt 0:01:02]} 31. Qe2 {[%emt 0:00:08]} Qxh3 {[%emt 0:00:43]} 32. Bg1 {[%emt 0:01:13]} Qd7 {[%emt 0:01:04]} 33. Ra1 {[%emt 0:00:17]} Rb7 {[%emt 0:00:56]} 34. Ra8+ {[%emt 0:01:07]} Kg7 {[%emt 0:05:36]} 35. Qa6 {[%emt 0:01:03]} Kh6 {[%emt 0:12:56]} 36. c4 {[%emt 0:08:01]} Qh3 {[%emt 0:08:15]} 37. Qxb7 {[%emt 0:00:19]} Qf1+ {[%emt 0:00:49]} 38. Kd2 {[%emt 0:00:18]} Qxg1 {[%emt 0:03:25]} 39. Qxb3 {[%emt 0:00:17]} Qxh2+ {[%emt 0:00:33]} 40. Kc1 {[%emt 0:00:00]} Kg5 {[%emt 0:00:00]} 41. Qd1 {[%emt 0:09:51]} Qf2 {[%emt 0:09:08]} 42. Kb1 {[%emt 0:05:46]} h5 {[%emt 0:01:12]} 43. Qh1 {[%emt 0:00:26]} h4 {[%emt 0:01:07]} 44. b4 {[%emt 0:01:22]} Qd2 {[%emt 0:09:39]} 45. Qf1 {[%emt 0:05:05]} Qxb4+ {[%emt 0:00:12]} 46. Kc2 {[%emt 0:00:05]} Kh6 {[%emt 0:00:55]} 47. Ra1 {[%emt 0:01:42]} g5 {[%emt 0:02:06]} 48. Qe2 {[%emt 0:03:41]} Bd8 {[%emt 0:01:05]} 49. Qd3 {[%emt 0:02:11]} Bb6 {[%emt 0:01:17]} 50. Rb1 {[%emt 0:00:52]} Qa4+ {[%emt 0:00:32]} 51. Qb3 {[%emt 0:00:38]} Qxb3+ {[%emt 0:00:31]} 52. Rxb3 {[%emt 0:00:08]} Bc5 {[%emt 0:00:06]} 53. Rb5 {[%emt 0:00:21]} Kg6 {[%emt 0:06:58]} 54. Rb8 {[%emt 0:00:25]} Kg7 {[%emt 0:14:07]} 55. Kd3 {[%emt 0:01:05]} h3 {[%emt 0:08:26]} 56. Rb1 {[%emt 0:00:14]} h2 {[%emt 0:00:10]} 57. Rh1 {[%emt 0:00:06]} Bg1 {[%emt 0:00:09]} 58. Ke2 {[%emt 0:00:07]} Kg6 {[%emt 0:09:32]} 59. Kf1 {[%emt 0:00:13]} Bc5 {[%emt 0:01:44]} 60. Rxh2 {[%emt 0:00:11]} g4 {[%emt 0:00:17]} 61. fxg4 {[%emt 0:02:48]} Kg5 {[%emt 0:00:06]} 62. Rg2 {[%emt 0:00:14]} f3 {[%emt 0:00:05]} 63. Rg3 {[%emt 0:00:10]} Kf4 {[%emt 0:00:14]} 64. g5 {[%emt 0:00:17]} Kxe4 {[%emt 0:01:36]} 65. g6 {[%emt 0:00:14]} Ke3 {[%emt 0:02:03]} 66. g7 {[%emt 0:00:15]} e4 {[%emt 0:00:13]} 67. g8=Q {[%emt 0:00:10]} Kd2 {[%emt 0:00:07]} 68. Qe6 1-0

[Event "FIDE WCCC U8 2018"]
[Site "Santiago de Compostela"]
[Date "2018.11.12"]
[Round "8"]
[White "Azadaliyev, Jahandar"]
[Black "Finek, Vaclav"]
[Result "1-0"]
[ECO "D85"]
[WhiteElo "1674"]
[BlackElo "1942"]
[Annotator "NA RC"]
[PlyCount "91"]
[EventDate "2018.11.04"]
[EventType "swiss"]
[EventCountry "ESP"]
[SourceTitle "playchess.com"]
[Source "ChessBase"]
[SourceQuality "1"]
[TimeControl "40/5400+30:1800+30"]

{[%evp 8,90,35,40,42,32767,27,37,39,-10,47,11,8,-13,16,8,21,7,66,60,68,63,93,85,102,91,79,77,125,147,149,143,182,179,183,146,198,195,32767,32767,32767,32767,130,42,54,39,58,8,25,0,66,66,229,265,237,241,251,284,278,165,329,380,320,314,435,447,390,466,463,460,583,688,556,644,790,1061,897,32767,32767,32767,29983,32767,29975,29976,12847]} 1. d4 {[%emt 0:00:00]} Nf6 {[%emt 0:00:00]} 2. c4 {[%emt 0:00:00]} g6 {[%emt 0:00:00]} 3. Nc3 {[%emt 0:00:30]} d5 {[%emt 0:00:00]} 4. cxd5 {[%emt 0:00:55]} Nxd5 {[%emt 0:00:00]} 5. e4 {[%emt 0:01:08]} Nxc3 {[%emt 0:00:00]} 6. bxc3 {[%emt 0:00:36]} Bg7 {[%emt 0:00:04]} 7. Nf3 {[%emt 0:00:50]} c5 {[%emt 0:00:14]} 8. Be2 {[%emt 0:00:53]} O-O {[%emt 0:00:08]} 9. Rb1 {[%emt 0:00:49]} Nc6 {[%emt 0:03:01]} 10. d5 {[%emt 0:01:07]} Ne5 {[%emt 0:00:51]} 11. Nxe5 {[%emt 0:00:59]} Bxe5 {[%emt 0:00:10] LiveBook: 727 Games} 12. Qd2 {[%emt 0:00:36]} Qc7 {[%emt 0:06:42] D85: Exchange Grünfeld: Unusual White 7th moves and lines with 7 Nf3} (12... e6 $11 13. f4 Bc7 14. O-O exd5 15. exd5 Ba5 16. Ba3 Qd6 17. Rb5 Bb6 18. c4 Bf5 19. g4 Be4 20. Bb2 f6 21. g5 Qd7 22. Bxf6 Bd8 23. Bb2 Qh3 24. Rf2 Bxg5 25. Rxb7 {1-0 (35) Korobov,A (2700)-Smirin,I (2655) Poikovsky 2015 CBM 169 [CB]}) 13. f4 {[%emt 0:00:43]} Bg7 14. O-O {[%emt 0:00:58]} Rd8 {[%emt 0:02:09]} 15. c4 {[%emt 0:02:23]} b6 {[%emt 0:04:32]} 16. Bb2 {[%emt 0:02:22]} Bxb2 $146 {[%emt 0:05:15]} ({Predecessor:} 16... e6 17. Bxg7 Kxg7 18. Qc3+ Kg8 19. Rbd1 exd5 20. cxd5 Bb7 21. f5 Qe7 22. fxg6 fxg6 23. d6 Qg7 24. Bc4+ Kh8 25. Qxg7+ Kxg7 26. Rf7+ Kh6 27. Rxb7 {1-0 (27) Penna,T (1936)-Zannoni,G (1797) Santhia 2013}) 17. Qxb2 {[%emt 0:00:40]} Bb7 {[%emt 0:05:20]} (17... e6 $14) 18. f5 {[%emt 0:03:16]} f6 {[%emt 0:17:36]} 19. Rf3 {[%emt 0:03:22]} Qe5 {[%emt 0:16:31]} 20. Qxe5 {[%emt 0:01:53]} fxe5 {[%emt 0:01:23]} 21. Rg3 {[%emt 0:00:01]} Kg7 {[%emt 0:02:09]} 22. fxg6 {[%emt 0:00:10]} hxg6 $11 {[%emt 0:00:03] keeps the balance.} 23. Bh5 {[%emt 0:00:44]} Rd6 {[%emt 0:00:31]} 24. Be2 {[%emt 0:00:33]} e6 {[%emt 0:03:59]} 25. Bd3 {[%emt 0:04:37]} (25. Rg5 $16) 25... Re8 {[%emt 0:02:04]} 26. Rf1 {[%emt 0:03:07]} exd5 {[%emt 0:05:25]} 27. exd5 {[%emt 0:00:12]} e4 {[%emt 0:02:26]} 28. Re3 {[%emt 0:00:17]} Ba6 {[%emt 0:00:16]} (28... b5 $11) 29. Be2 $1 {[%emt 0:01:39]} Rf6 $2 {[%emt 0:01:17]} ({Black should play} 29... Bc8 $14) 30. Ra3 {[%emt 0:00:35]} Rxf1+ {[%emt 0:00:47]} 31. Kxf1 {[%emt 0:00:12]} Bc8 {[%emt 0:00:49]} 32. Rxa7+ {[%emt 0:00:10]} Kf6 {[%emt 0:00:14]} 33. Kf2 {[%emt 0:00:11]} Ke5 {[%emt 0:02:06]} (33... e3+ {might work better.} 34. Kf3 Bf5) 34. Ke3 {[%emt 0:00:00]} g5 {[%emt 0:02:16]} 35. Rg7 {[%emt 0:00:07]} Bf5 {[%emt 0:05:13]} (35... Kf6 $142) 36. g4 {[%emt 0:00:34]} Kf6 {[%emt 0:01:08]} 37. Rb7 {[%emt 0:00:19]} Bc8 {[%emt 0:00:14]} 38. Rxb6+ {[%emt 0:00:07]} Kg7 {[%emt 0:00:10]} 39. Rc6 {[%emt 0:00:00]} Rh8 {[%emt 0:00:00]} 40. Rxc5 {[%emt 0:00:00]} Rh3+ {[%emt 0:00:00]} 41. Kxe4 {[%emt 0:01:25]} Rxh2 {[%emt 0:01:53]} 42. Rxc8 {[%emt 0:00:57]} Rxe2+ {[%emt 0:00:07]} 43. Kf5 {[%emt 0:00:05]} Rxa2 {[%emt 0:00:12]} 44. Kxg5 {[%emt 0:00:16]} Re2 {[%emt 0:00:50]} 45. Rc7+ {[%emt 0:00:23]} Kf8 $18 {[%emt 0:00:09]} 46. d6 {[%emt 0:00:12]} 1-0